bitfinex/quotes_BTCUSD_20230115
["timestamp","ask_amount","ask_price","bid_price","bid_amount"]
[1673757472946,0.36938424,20758.0,20757.0,0.008]
[1673757473217,0.37838424,20758.0,20757.0,0.008]
[1673757474679,0.51541029,20758.0,20757.0,0.008]
[1673757474925,1.72046459,20758.0,20757.0,0.008]
[1673757475175,1.32754634,20758.0,20757.0,0.008]
[1673757475426,1.26445638,20758.0,20757.0,0.008]
[1673757475685,1.24645638,20758.0,20755.0,0.57337637]
[1673757475937,0.36045605,20757.0,20755.0,0.57337637]
[1673757476183,0.62596342,20757.0,20755.0,0.57337637]
[1673757476429,0.84223705,20757.0,20755.0,0.57337637]
[1673757476672,0.77488069,20757.0,20755.0,0.5732939]
[1673757476921,0.77488069,20757.0,20754.0,0.5317]
[1673757477171,0.13293045,20756.0,20755.0,0.009]
[1673757478426,0.61471845,20756.0,20754.0,0.5317]
[1673757478680,0.75890087,20756.0,20754.0,0.5317]
[1673757478932,0.61471845,20756.0,20754.0,0.5317]
[1673757479929,0.76690087,20756.0,20754.0,0.5407]
[1673757480181,0.62271845,20756.0,20754.0,0.5407]
[1673757480699,0.14093045,20756.0,20754.0,0.5407]
[1673757482722,0.008,20756.0,20755.0,0.0789]
[1673757482982,0.008,20756.0,20755.0,0.88192]
[1673757483241,0.16174801,20760.0,20755.0,1.51919307]
[1673757483489,0.16174801,20760.0,20757.0,0.0783]
[1673757483738,0.16174801,20760.0,20757.0,0.10314485]
[1673757484235,0.16174801,20760.0,20757.0,0.0783]
[1673757484489,0.16174801,20760.0,20757.0,0.0933]
[1673757484782,0.16674801,20760.0,20758.0,0.47825332]
[1673757485743,0.16174801,20760.0,20758.0,0.47825332]
[1673757485999,0.16174801,20760.0,20758.0,0.48025332]
[1673757486250,0.19674801,20760.0,20758.0,0.48025332]
[1673757486503,0.19674801,20760.0,20758.0,0.32985332]
[1673757490826,0.67844401,20760.0,20758.0,0.002]
[1673757491084,0.30953761,20759.0,20758.0,0.002]
[1673757491374,1.09125561,20759.0,20758.0,0.002]
[1673757491612,1.23543803,20759.0,20758.0,0.002]
[1673757491878,1.23543803,20759.0,20755.0,0.55901491]
[1673757492153,1.63955928,20759.0,20758.0,0.002]
[1673757492456,1.48671166,20759.0,20758.0,0.002]
[1673757493208,1.18671166,20759.0,20758.0,0.002]
[1673757493732,0.97043803,20759.0,20758.0,0.002]
[1673757493989,1.18671166,20759.0,20758.0,0.002]
[1673757495086,0.97043803,20759.0,20758.0,0.002]
[1673757495258,0.82625561,20759.0,20758.0,0.09791]
[1673757496833,0.82625561,20759.0,20758.0,0.002]
[1673757497083,0.34453761,20759.0,20758.0,0.09791]
[1673757497372,0.34453761,20759.0,20758.0,0.002]
[1673757497643,0.48872003,20759.0,20758.0,0.002]
[1673757498149,0.70499366,20759.0,20758.0,0.002]
[1673757498646,0.48872003,20759.0,20758.0,0.002]
[1673757499882,0.34453761,20759.0,20758.0,0.09791]
[1673757500382,0.48872003,20759.0,20758.0,0.002]
[1673757500650,0.34453761,20759.0,20758.0,0.002]
[1673757501655,0.34453761,20759.0,20758.0,0.09791]
[1673757501910,0.34453761,20759.0,20758.0,0.002]
[1673757503640,0.48872003,20759.0,20758.0,0.002]
[1673757504911,0.97043803,20759.0,20758.0,0.002]
[1673757505649,1.18671166,20759.0,20758.0,0.002]
[1673757506667,1.23958099,20759.0,20758.0,0.002]
[1673757506920,0.979808,20759.0,20758.0,0.002]
[1673757507164,0.979808,20759.0,20758.0,0.0018953]
[1673757507664,1.058708,20759.0,20758.0,0.0018953]
[1673757507909,1.09421364,20759.0,20758.0,0.0018953]
[1673757508172,1.32756309,20759.0,20758.0,0.0018953]
[1673757508417,1.75941505,20759.0,20758.0,0.0018953]
[1673757509412,1.32756309,20759.0,20758.0,0.0018953]
[1673757509662,1.75941505,20759.0,20758.0,0.0018953]
[1673757510681,1.57765801,20759.0,20758.0,0.0018953]
[1673757510929,1.32756309,20759.0,20758.0,0.0018953]
[1673757516479,2.83362189,20759.0,20758.0,0.0018953]
[1673757516732,2.83362189,20759.0,20750.0,0.64020811]
[1673757516733,2.34025859,20759.0,20750.0,0.64020811]
[1673757516986,2.34025859,20759.0,20750.0,0.66505296]
[1673757516987,0.36057235,20753.0,20750.0,0.66505296]
[1673757517243,0.36057235,20753.0,20751.0,0.47879957]
[1673757517244,0.19072595,20752.0,20751.0,0.47879957]
[1673757517506,1.15448795,20752.0,20751.0,0.47879957]
[1673757517758,1.15448795,20752.0,20749.0,0.54893019]
[1673757517759,0.481881,20752.0,20749.0,0.54893019]
[1673757518030,0.67260695,20752.0,20749.0,0.62783019]
[1673757518532,0.481881,20752.0,20749.0,0.62783019]
[1673757518782,0.488881,20752.0,20749.0,0.62783019]
[1673757519045,0.481881,20752.0,20749.0,0.62783019]
[1673757519291,0.490881,20752.0,20749.0,0.62783019]
[1673757519566,0.481881,20752.0,20749.0,0.62783019]
[1673757519818,0.490881,20752.0,20749.0,1.15524785]
[1673757521065,0.72018721,20752.0,20749.0,1.15524785]
[1673757522699,0.71118721,20752.0,20749.0,1.15524785]
[1673757523558,0.72018721,20752.0,20749.0,1.15524785]
[1673757525344,0.72018721,20752.0,20750.0,0.62011295]
[1673757525833,0.71118721,20752.0,20750.0,0.62011295]
[1673757526066,0.72018721,20752.0,20750.0,0.62011295]
[1673757526581,0.72010627,20752.0,20750.0,0.62011295]
[1673757527090,0.71110627,20752.0,20749.0,0.62783019]
[1673757527342,0.72010627,20752.0,20749.0,0.62783019]
[1673757527572,0.72010627,20752.0,20749.0,1.2382663]
[1673757527838,0.25778807,20751.0,20749.0,1.1593663]
[1673757528080,0.481927,20750.0,20749.0,1.1593663]
[1673757528827,0.481927,20750.0,20749.0,0.6148663]
[1673757529081,0.481927,20750.0,20749.0,0.00443019]
[1673757529587,0.490927,20750.0,20749.0,0.00443019]
[1673757530103,0.481869,20753.0,20750.0,0.481927]
[1673757530358,0.31076456,20752.0,20751.0,0.400109]
[1673757530610,0.31076456,20752.0,20751.0,0.0789]
[1673757531840,0.72604294,20755.0,20751.0,0.0789]
[1673757531841,0.62604294,20755.0,20751.0,0.0789]
[1673757532098,0.009,20753.0,20751.0,0.63274485]
[1673757532345,0.30395769,20754.0,20751.0,0.6079]
[1673757532609,0.007,20752.0,20751.0,0.6159]
[1673757533218,0.007,20752.0,20751.0,1.0389421]
[1673757533368,0.30395769,20754.0,20751.0,1.0309421]
[1673757533616,0.30395769,20754.0,20751.0,1.0399421]
[1673757533879,0.78579869,20754.0,20751.0,0.529]
[1673757534127,0.007,20752.0,20751.0,0.537]
[1673757534406,0.78579869,20754.0,20751.0,0.529]
[1673757534407,0.93002763,20754.0,20751.0,0.529]
[1673757534625,0.93702763,20754.0,20751.0,0.537]
[1673757534890,0.93002763,20754.0,20751.0,0.529]
[1673757535174,0.93002763,20754.0,20751.0,0.537]
[1673757535175,0.007,20752.0,20751.0,0.537]
[1673757535429,0.007,20752.0,20751.0,0.529]
[1673757536433,0.007,20752.0,20751.0,0.537]
[1673757536674,0.30562928,20752.0,20751.0,0.529]
[1673757537170,0.31262928,20752.0,20751.0,0.537]
[1673757540459,0.007,20752.0,20751.0,0.537]
[1673757540711,0.007,20752.0,20751.0,1.04686339]
[1673757541509,0.007,20752.0,20751.0,0.537]
[1673757542065,0.25502884,20752.0,20751.0,0.537]
[1673757542289,0.73690984,20752.0,20751.0,0.537]
[1673757544541,0.73690984,20752.0,20751.0,0.008]
[1673757546329,0.88113878,20752.0,20751.0,0.008]
[1673757547107,0.73690984,20752.0,20751.0,0.008]
[1673757547358,0.88113878,20752.0,20751.0,0.008]
[1673757547870,0.73690984,20752.0,20751.0,0.008]
[1673757548871,0.88113878,20752.0,20751.0,0.008]
[1673757549401,0.73690984,20752.0,20751.0,0.008]
[1673757550124,0.88113878,20752.0,20751.0,0.008]
[1673757554144,1.09748219,20752.0,20751.0,0.008]
[1673757555124,0.88113878,20752.0,20751.0,0.008]
[1673757556357,0.88113878,20752.0,20751.0,0.82513405]
[1673757556358,0.007,20752.0,20751.0,0.82513405]
[1673757556607,0.00690504,20752.0,20751.0,2.23072479]
[1673757556866,0.00690504,20752.0,20751.0,3.48096362]
[1673757557156,0.00690504,20752.0,20751.0,3.02849563]
[1673757557411,0.00690504,20752.0,20751.0,2.67002996]
[1673757557918,0.00690504,20752.0,20751.0,3.36814636]
[1673757558171,0.00690504,20752.0,20751.0,3.715213]
[1673757558436,0.27916468,20756.0,20751.0,3.60803169]
[1673757558701,0.27916468,20756.0,20752.0,0.214052]
[1673757558702,0.31100034,20755.0,20752.0,0.214052]
[1673757558954,0.31100034,20755.0,20753.0,0.321173]
[1673757559231,0.31100034,20755.0,20752.0,0.1438051]
[1673757559740,0.31100034,20755.0,20753.0,0.321209]
[1673757559994,0.31100034,20755.0,20753.0,0.63704453]
[1673757560517,1.14962062,20757.0,20753.0,0.63704453]
[1673757560763,0.45150821,20757.0,20753.0,0.66188938]
[1673757561292,0.003,20755.0,20753.0,0.71988938]
[1673757561558,0.30727927,20757.0,20754.0,0.1]
[1673757561809,0.45450821,20757.0,20755.0,0.321209]
[1673757562057,0.30727927,20757.0,20753.0,1.26270363]
[1673757562334,0.31027927,20757.0,20754.0,0.59023408]
[1673757562836,0.30727927,20757.0,20754.0,0.64823408]
[1673757563088,0.30727927,20757.0,20754.0,0.59023408]
[1673757564141,0.31027927,20757.0,20754.0,0.64823408]
[1673757564397,0.003,20757.0,20754.0,0.64823408]
[1673757564658,0.003,20757.0,20755.0,0.321209]
[1673757565020,0.003,20757.0,20754.0,0.64823408]
[1673757565021,0.003,20757.0,20756.0,0.63436012]
[1673757565911,0.25704475,20758.0,20756.0,0.63436012]
[1673757566174,0.003,20757.0,20756.0,0.69336012]
[1673757567222,0.003,20757.0,20756.0,0.059]
[1673757567223,0.27724587,20757.0,20756.0,0.059]
[1673757567476,0.75901087,20757.0,20756.0,0.059]
[1673757573108,0.27724587,20757.0,20756.0,0.059]
[1673757576698,1.35120051,20757.0,20756.0,0.059]
[1673757576949,1.23937735,20757.0,20756.0,0.059]
[1673757577207,1.09514841,20757.0,20756.0,0.059]
[1673757577487,1.56329423,20757.0,20756.0,0.059]
[1673757577759,1.41884753,20757.0,20756.0,0.059]
[1673757577993,1.41884832,20757.0,20756.0,0.059]
[1673757578241,1.41886717,20757.0,20756.0,0.059]
[1673757578502,1.20272188,20757.0,20756.0,0.059]
[1673757578760,1.59875571,20757.0,20756.0,0.059]
[1673757579008,1.66184571,20757.0,20756.0,0.059]
[1673757580032,1.30127309,20757.0,20756.0,0.059]
[1673757580541,1.33673715,20757.0,20756.0,0.059]
[1673757580804,1.6973095,20757.0,20756.0,0.059]
[1673757581056,1.33673715,20757.0,20756.0,0.059]
[1673757581561,1.73277377,20757.0,20756.0,0.059]
[1673757582077,2.04567023,20757.0,20756.0,0.059]
[1673757582361,2.04567002,20757.0,20756.0,0.059]
[1673757582906,1.86581112,20757.0,20756.0,0.059]
[1673757583396,1.77229345,20757.0,20752.0,0.64755603]
[1673757583650,1.58791466,20757.0,20756.0,0.005]
[1673757583916,1.26145678,20757.0,20752.0,0.64755603]
[1673757584164,1.26145678,20757.0,20756.0,0.005]
[1673757584165,2.18469661,20757.0,20756.0,0.005]
[1673757584436,0.14412788,20756.0,20752.0,0.64755603]
[1673757584946,0.47898062,20756.0,20753.0,0.59021751]
[1673757585209,0.28825467,20756.0,20753.0,0.59021751]
[1673757585719,0.23605539,20755.0,20753.0,0.59021751]
[1673757587019,0.23805539,20755.0,20753.0,0.61521751]
[1673757587523,0.23805539,20755.0,20753.0,0.025]
[1673757588302,0.38222881,20755.0,20753.0,0.025]
[1673757588564,0.23805539,20755.0,20753.0,0.025]
[1673757589418,0.23605539,20755.0,20752.0,0.65362128]
[1673757589625,0.23805539,20755.0,20753.0,0.025]
[1673757590402,0.23605539,20755.0,20752.0,0.65362128]
[1673757590659,0.23905539,20755.0,20752.0,0.70762128]
[1673757590912,0.23605539,20755.0,20752.0,0.65362128]
[1673757591175,0.23805539,20755.0,20753.0,0.025]
[1673757591430,0.23605539,20755.0,20752.0,0.65362128]
[1673757592478,0.38322881,20755.0,20752.0,0.70762128]
[1673757592744,0.23905539,20755.0,20752.0,0.70762128]
[1673757594271,0.38332696,20755.0,20752.0,0.70762128]
[1673757594529,0.38332696,20755.0,20753.0,0.61896787]
[1673757594784,0.23905539,20755.0,20753.0,0.61896787]
[1673757595055,0.38332696,20755.0,20753.0,0.61896787]
[1673757595313,0.23905539,20755.0,20753.0,0.61896787]
[1673757595889,0.38032675,20755.0,20753.0,0.61896787]
[1673757596082,0.38032675,20755.0,20753.0,0.64396787]
[1673757596083,0.38232675,20755.0,20753.0,0.64396787]
[1673757596331,0.23805539,20755.0,20753.0,0.64396787]
[1673757596582,0.38232675,20755.0,20753.0,0.64396787]
[1673757597373,0.59879636,20755.0,20753.0,0.64396787]
[1673757598209,0.38232675,20755.0,20753.0,0.64396787]
[1673757598713,0.59879636,20755.0,20753.0,0.64396787]
[1673757599182,0.38232675,20755.0,20753.0,0.64396787]
[1673757600442,0.002,20755.0,20753.0,0.66881272]
[1673757600705,0.002,20755.0,20754.0,0.57065428]
[1673757601475,0.001416,20755.0,20754.0,0.57065428]
[1673757602415,0.79299293,20756.0,20754.0,0.57065428]
[1673757603076,0.038,20755.0,20754.0,0.57465428]
[1673757603294,0.79299293,20756.0,20754.0,0.57065428]
[1673757603523,1.02475891,20756.0,20754.0,0.57065428]
[1673757604008,1.27922852,20756.0,20754.0,0.57465428]
[1673757604471,0.14427136,20755.0,20754.0,0.004]
[1673757605574,0.14427136,20755.0,20753.0,0.6317276]
[1673757606010,0.18227136,20755.0,20754.0,0.004]
[1673757606683,0.14427136,20755.0,20753.0,0.6317276]
[1673757606909,0.14627136,20755.0,20753.0,0.6567276]
[1673757607911,1.24122852,20756.0,20753.0,0.6317276]
[1673757608163,0.18227136,20755.0,20754.0,0.004]
[1673757608413,0.18227136,20755.0,20753.0,0.6317276]
[1673757608686,0.18227136,20755.0,20753.0,0.6567276]
[1673757608687,0.18427136,20755.0,20753.0,0.6567276]
[1673757608936,1.24122852,20756.0,20753.0,0.6317276]
[1673757609187,1.24322852,20756.0,20753.0,0.6567276]
[1673757609439,0.14427136,20755.0,20753.0,0.6567276]
[1673757609666,0.14427136,20755.0,20753.0,0.6317276]
[1673757609891,0.002,20755.0,20753.0,0.6567276]
[1673757610716,1.24122852,20756.0,20753.0,0.6317276]
[1673757610976,1.24322852,20756.0,20753.0,0.6567276]
[1673757611267,0.28036784,20755.0,20753.0,0.6317276]
[1673757611451,0.4266392,20755.0,20753.0,0.6567276]
[1673757611715,0.4246392,20755.0,20753.0,0.6317276]
[1673757611972,0.4246392,20755.0,20753.0,0.6567276]
[1673757612230,0.4246392,20755.0,20753.0,0.6317276]
[1673757612477,0.4246392,20755.0,20753.0,0.6567276]
[1673757612742,0.28236784,20755.0,20753.0,0.6567276]
[1673757612990,0.4266392,20755.0,20753.0,0.6567276]
[1673757615792,0.64310881,20755.0,20753.0,0.6567276]
[1673757616051,0.4266392,20755.0,20753.0,0.6567876]
[1673757616301,0.64310881,20755.0,20753.0,0.6567876]
[1673757616553,0.14427136,20754.0,20753.0,0.6567876]
[1673757617331,0.64110881,20755.0,20753.0,0.6317876]
[1673757617587,0.002,20754.0,20753.0,0.6567876]
[1673757617843,0.002,20754.0,20753.0,0.02506]
[1673757618096,0.37460083,20754.0,20753.0,0.02506]
[1673757620383,0.59107044,20754.0,20753.0,0.02506]
[1673757620902,0.73525696,20754.0,20753.0,0.02506]
[1673757621389,1.21709096,20754.0,20753.0,0.02506]
[1673757621932,1.00062135,20754.0,20753.0,0.02506]
[1673757622183,1.2173769,20754.0,20753.0,0.025]
[1673757622449,1.07340598,20754.0,20753.0,0.025]
[1673757622697,1.40574481,20754.0,20753.0,0.025]
[1673757622953,1.179967,20754.0,20753.0,0.025]
[1673757623216,1.04191056,20754.0,20753.0,0.02492189]
[1673757623967,0.74191056,20754.0,20753.0,0.02492189]
[1673757624197,1.40301751,20754.0,20753.0,0.02492189]
[1673757625019,1.69189811,20754.0,20753.0,0.02492189]
[1673757625564,1.40301751,20754.0,20753.0,0.02492189]
[1673757625817,1.69189874,20754.0,20753.0,0.02492189]
[1673757626848,1.40301751,20754.0,20753.0,0.02492189]
[1673757627109,1.69183963,20754.0,20753.0,0.02492189]
[1673757627614,1.46932372,20754.0,20753.0,0.02492189]
[1673757628136,1.28923387,20754.0,20753.0,0.00992189]
[1673757628393,1.77348118,20754.0,20753.0,0.00992189]
[1673757628639,1.18047378,20754.0,20753.0,0.00992189]
[1673757628890,1.4692526,20754.0,20753.0,0.00992189]
[1673757629116,1.18047378,20754.0,20753.0,0.00992189]
[1673757629341,1.42627914,20754.0,20753.0,0.00992189]
[1673757630103,1.71505364,20754.0,20753.0,0.00992189]
[1673757630366,1.31841386,20754.0,20753.0,0.00992189]
[1673757630629,1.01841386,20754.0,20753.0,0.00992189]
[1673757630890,1.31841386,20754.0,20753.0,0.00992189]
[1673757631113,1.23496933,20754.0,20753.0,0.00992189]
[1673757631357,1.01841386,20754.0,20753.0,0.00992189]
[1673757631878,1.09055238,20754.0,20753.0,0.10583189]
[1673757632148,1.09055238,20754.0,20753.0,0.00992189]
[1673757632149,0.87400457,20754.0,20753.0,0.00992189]
[1673757632427,1.09055238,20754.0,20753.0,0.00992189]
[1673757632912,0.87400457,20754.0,20753.0,0.00992189]
[1673757633709,1.09055238,20754.0,20753.0,0.00992189]
[1673757634439,0.60871838,20754.0,20753.0,0.00992189]
[1673757637200,0.39217057,20754.0,20753.0,0.00992189]
[1673757638248,0.60870801,20754.0,20753.0,0.00992189]
[1673757638498,0.4643428,20754.0,20753.0,0.00992189]
[1673757638749,0.39216208,20754.0,20753.0,0.00992189]
[1673757639003,0.90869952,20754.0,20753.0,0.00992189]
[1673757639219,1.6792568,20754.0,20753.0,0.00992189]
[1673757639445,1.52382631,20754.0,20753.0,0.00992189]
[1673757639692,1.09054134,20754.0,20753.0,0.00992189]
[1673757640222,1.23489589,20754.0,20753.0,0.00992189]
[1673757640732,0.89743062,20754.0,20753.0,0.00992189]
[1673757641237,0.75306157,20754.0,20753.0,0.00992189]
[1673757642463,0.53651631,20754.0,20753.0,0.00992189]
[1673757642715,0.608701,20754.0,20753.0,0.00992189]
[1673757643220,0.75305981,20754.0,20753.0,0.00992189]
[1673757644768,0.53652089,20754.0,20753.0,0.00992189]
[1673757646459,0.75307359,20754.0,20753.0,0.00992189]
[1673757646709,0.60871478,20754.0,20753.0,0.00992189]
[1673757646965,0.75308379,20754.0,20753.0,0.00992189]
[1673757647413,0.53653109,20754.0,20753.0,0.00992189]
[1673757648334,1.05308379,20754.0,20753.0,0.00992189]
[1673757648335,1.19743806,20754.0,20753.0,0.00992189]
[1673757648609,1.67927206,20754.0,20753.0,0.00984865]
[1673757648837,1.53495011,20754.0,20753.0,0.00984865]
[1673757649056,1.53495031,20754.0,20753.0,0.00984865]
[1673757649749,1.82371525,20754.0,20753.0,0.00984865]
[1673757650012,1.52371525,20754.0,20753.0,0.00984865]
[1673757650493,1.23495031,20754.0,20753.0,0.00984865]
[1673757650968,1.37934597,20754.0,20753.0,0.00984865]
[1673757651484,1.16277355,20754.0,20753.0,0.00984865]
[1673757652140,0.68093955,20754.0,20753.0,0.00984865]
[1673757654625,1.04190868,20754.0,20753.0,0.00984865]
[1673757655108,0.2722014,20753.0,20751.0,1.08493563]
[1673757655369,0.4166261,20753.0,20751.0,1.08493563]
[1673757656313,0.4236261,20753.0,20751.0,1.10693563]
[1673757657403,0.4236261,20753.0,20751.0,0.54470865]
[1673757657857,0.2792014,20753.0,20751.0,0.54470865]
[1673757658858,0.64019852,20753.0,20751.0,0.54470865]
[1673757659564,0.4236261,20753.0,20751.0,0.54470865]
[1673757660054,0.64019852,20753.0,20751.0,0.54470865]
[1673757660271,0.1444247,20752.0,20751.0,0.54470865]
[1673757661228,0.1444247,20752.0,20751.0,0.52270865]
[1673757661482,0.1504247,20752.0,20751.0,0.55370865]
[1673757662268,0.006,20752.0,20751.0,0.55370865]
[1673757663284,0.1504247,20752.0,20751.0,0.55370865]
[1673757663536,0.3850927,20752.0,20751.0,0.55370865]
[1673757665056,0.240668,20752.0,20751.0,0.55370865]
[1673757665303,0.006,20752.0,20751.0,0.55370865]
[1673757665992,0.1504247,20752.0,20751.0,0.55370865]
[1673757666238,0.006,20752.0,20751.0,0.55370865]
[1673757667192,0.1504247,20752.0,20751.0,0.55370865]
[1673757667461,0.30549736,20752.0,20751.0,0.55370865]
[1673757667974,0.44992206,20752.0,20751.0,0.55370865]
[1673757668238,0.30549736,20752.0,20751.0,0.55370865]
[1673757669765,0.44992206,20752.0,20751.0,0.55370865]
[1673757670277,0.006,20752.0,20751.0,0.55370865]
[1673757672002,0.006,20752.0,20751.0,0.69751375]
[1673757672516,0.006,20752.0,20751.0,0.55370865]
[1673757672988,0.006,20752.0,20751.0,0.69751375]
[1673757674050,0.006,20752.0,20751.0,0.55370865]
[1673757675480,0.006,20752.0,20751.0,0.69751375]
[1673757675736,0.006,20752.0,20751.0,0.55370865]
[1673757676492,0.006,20752.0,20751.0,0.69751375]
[1673757676741,0.006,20752.0,20751.0,1.01872275]
[1673757677219,0.006,20752.0,20751.0,0.69751375]
[1673757677465,0.006,20752.0,20751.0,0.55370865]
[1673757678449,0.006,20752.0,20751.0,0.69751375]
[1673757679190,0.006,20752.0,20751.0,1.01872275]
[1673757679694,0.006,20752.0,20751.0,0.87491765]
[1673757679997,0.006,20752.0,20751.0,0.55370865]
[1673757682286,0.30270218,20752.0,20751.0,0.55370865]
[1673757682503,0.44712688,20752.0,20751.0,0.55370865]
[1673757683185,0.30270218,20752.0,20751.0,0.55370865]
[1673757683452,0.30264049,20752.0,20751.0,0.69751375]
[1673757684757,0.30264049,20752.0,20751.0,0.55370865]
[1673757685274,0.30264049,20752.0,20751.0,0.69751375]
[1673757685769,0.00593831,20752.0,20751.0,0.69751375]
[1673757686033,0.00593831,20752.0,20751.0,0.87491765]
[1673757686292,0.00593831,20752.0,20751.0,0.55370865]
[1673757689242,0.24680537,20752.0,20751.0,0.55370865]
[1673757689522,0.60780249,20752.0,20751.0,0.55370865]
[1673757689774,0.39123007,20752.0,20751.0,0.031]
[1673757690040,1.08968349,20752.0,20751.0,0.031]
[1673757690300,1.0897539,20752.0,20751.0,0.031]
[1673757690553,0.87318148,20752.0,20751.0,0.04374769]
[1673757691133,0.72868637,20752.0,20751.0,0.04374769]
[1673757691344,0.87318148,20752.0,20751.0,0.04374769]
[1673757692621,0.72868637,20752.0,20751.0,0.04374769]
[1673757692873,0.87318148,20752.0,20751.0,0.04374769]
[1673757693622,1.0897539,20752.0,20751.0,0.04374769]
[1673757694386,0.94525879,20752.0,20751.0,0.04374769]
[1673757694657,1.2931841,20752.0,20751.0,0.04374769]
[1673757694943,1.44874425,20752.0,20751.0,0.04374769]
[1673757695725,1.59322075,20752.0,20751.0,0.04374769]
[1673757695995,1.58728244,20752.0,20751.0,0.01274769]
[1673757696268,1.43160617,20752.0,20751.0,0.01574769]
[1673757696496,1.37060617,20752.0,20751.0,0.01274769]
[1673757696749,1.13360617,20752.0,20751.0,0.01574769]
[1673757697010,1.49471312,20752.0,20751.0,0.01574769]
[1673757697525,1.06133546,20752.0,20751.0,0.01574769]
[1673757698048,1.20575495,20752.0,20751.0,0.01574769]
[1673757698306,0.98911848,20752.0,20751.0,0.01574769]
[1673757699078,1.20575495,20752.0,20751.0,0.01574769]
[1673757699637,0.98911848,20752.0,20751.0,0.01574769]
[1673757701192,1.35024264,20752.0,20751.0,0.01574769]
[1673757701699,0.90591987,20752.0,20751.0,0.01574769]
[1673757702224,1.18504418,20752.0,20751.0,0.01574769]
[1673757702488,1.32954896,20752.0,20751.0,0.01574769]
[1673757704542,1.18502681,20752.0,20751.0,0.01574769]
[1673757704765,1.48502681,20752.0,20751.0,0.01574769]
[1673757705009,1.62954896,20752.0,20751.0,0.01574769]
[1673757705774,1.32954896,20752.0,20751.0,0.01574769]
[1673757706030,1.62954896,20752.0,20751.0,0.01574769]
[1673757706610,1.32954896,20752.0,20751.0,0.01574769]
[1673757707578,1.62954896,20752.0,20751.0,0.01574769]
[1673757707821,1.18499666,20752.0,20751.0,0.01563477]
[1673757708314,1.48499666,20752.0,20751.0,0.01563477]
[1673757709067,1.18499666,20752.0,20751.0,0.01563477]
[1673757709318,1.48499666,20752.0,20751.0,0.01563477]
[1673757709563,1.62954896,20752.0,20751.0,0.01563477]
[1673757709810,1.32954896,20752.0,20751.0,0.01563477]
[1673757710065,1.62954896,20752.0,20751.0,0.01563477]
[1673757710312,1.32954896,20752.0,20751.0,0.01563477]
[1673757710821,1.62954896,20752.0,20751.0,0.01563477]
[1673757711085,1.50700575,20752.0,20751.0,0.01563477]
[1673757711338,1.90333476,20752.0,20751.0,0.01563477]
[1673757711662,1.6612591,20752.0,20751.0,0.01563477]
[1673757711859,1.6521426,20752.0,20751.0,0.01563477]
[1673757712616,1.7152326,20752.0,20751.0,0.01563477]
[1673757712873,1.43544192,20752.0,20751.0,0.01563477]
[1673757713379,1.66289984,20752.0,20751.0,0.01563477]
[1673757713647,1.49653587,20752.0,20751.0,0.003]
[1673757713914,1.55773308,20752.0,20751.0,0.003]
[1673757714919,1.007971,20752.0,20751.0,0.003]
[1673757716816,1.36873401,20752.0,20751.0,0.003]
[1673757717593,1.51614978,20752.0,20751.0,0.003]
[1673757719001,1.64873681,20752.0,20751.0,0.003]
[1673757719738,1.50132104,20752.0,20751.0,0.003]
[1673757719988,1.51385338,20752.0,20751.0,0.003]
[1673757720239,1.56682811,20752.0,20751.0,0.003]
[1673757720489,1.55729591,20752.0,20751.0,0.003]
[1673757721026,1.41295107,20752.0,20751.0,0.003]
[1673757721539,1.1963039,20752.0,20751.0,0.003]
[1673757721830,1.26850501,20752.0,20751.0,0.003]
[1673757722055,1.55707983,20752.0,20751.0,0.003]
[1673757722304,1.26850501,20752.0,20751.0,0.003]
[1673757723298,1.19631268,20752.0,20751.0,0.003]
[1673757723555,1.84079138,20752.0,20751.0,0.003]
[1673757723807,1.19631268,20752.0,20751.0,0.003]
[1673757724027,1.55707569,20752.0,20751.0,0.003]
[1673757724326,1.26850501,20752.0,20751.0,0.003]
[1673757725071,1.19634254,20752.0,20751.0,0.003]
[1673757725282,1.45035088,20752.0,20751.0,0.003]
[1673757725536,1.55710555,20752.0,20751.0,0.003]
[1673757725801,1.26850501,20752.0,20751.0,0.003]
[1673757726563,1.85031903,20752.0,20751.0,0.003]
[1673757727081,1.34295414,20752.0,20751.0,0.11503485]
[1673757727340,0.71673655,20752.0,20751.0,0.11503485]
[1673757727596,0.71673655,20752.0,20751.0,0.09019]
[1673757727597,0.35592907,20752.0,20751.0,0.09019]
[1673757727855,0.062771,20752.0,20751.0,1.0441267]
[1673757729714,0.14431936,20754.0,20751.0,1.0411267]
[1673757729965,0.005,20752.0,20751.0,0.7539177]
[1673757730222,0.14431936,20754.0,20751.0,1.0411267]
[1673757730478,0.005,20752.0,20751.0,0.7539177]
[1673757730783,0.005,20752.0,20751.0,1.0751267]
[1673757733703,0.93445702,20755.0,20751.0,1.0411267]
[1673757733964,0.93445702,20755.0,20752.0,0.214052]
[1673757734208,0.93445702,20755.0,20752.0,0.02484485]
[1673757734472,0.93445702,20755.0,20751.0,0.6667277]
[1673757734732,0.93445702,20755.0,20752.0,0.60224722]
[1673757735234,0.93445702,20755.0,20753.0,0.59366982]
[1673757735500,0.30832266,20755.0,20753.0,0.59366982]
[1673757735749,0.31425454,20755.0,20753.0,0.59366982]
[1673757736514,0.30825454,20755.0,20753.0,0.59366982]
[1673757736769,0.31425454,20755.0,20753.0,0.62766982]
[1673757737012,0.30825454,20755.0,20753.0,0.59366982]
[1673757737285,0.31025454,20755.0,20753.0,0.60466982]
[1673757738787,0.31025454,20755.0,20753.0,0.47006982]
[1673757741038,0.31025454,20755.0,20753.0,0.011]
[1673757741798,0.35463913,20754.0,20753.0,0.011]
[1673757742788,0.35463913,20754.0,20752.0,0.53595772]
[1673757743039,0.35663913,20754.0,20753.0,0.011]
[1673757744575,0.35463913,20754.0,20752.0,0.56995772]
[1673757744823,0.35463913,20754.0,20752.0,0.53595772]
[1673757744824,0.36063913,20754.0,20752.0,0.53595772]
[1673757745080,0.36063913,20754.0,20753.0,0.011]
[1673757745340,0.36063913,20754.0,20750.0,1.10971327]
[1673757745341,0.90156713,20754.0,20750.0,1.10971327]
[1673757745598,0.90156713,20754.0,20752.0,0.034]
[1673757745599,0.49072595,20753.0,20752.0,0.034]
[1673757745859,0.481858,20753.0,20750.0,1.10971327]
[1673757746127,0.67258395,20753.0,20750.0,1.10971327]
[1673757746372,0.67258395,20753.0,20750.0,0.5628]
[1673757746373,0.81690331,20753.0,20750.0,0.5628]
[1673757746630,0.3,20752.0,20750.0,0.5628]
[1673757746878,0.481904,20751.0,20750.0,0.5628]